Cogmind - Beta 10.1 @@@ ROGUE MODE // 2020.10.16 @ 14:59:45 Player: CrossedViper Result: Self-destructed Performance ------------- Evolutions (1) 500 Regions Visited (2) 400 Robots Destroyed (11) 55 Value Destroyed (329) 329 Prototype IDs (2) 40 Alien Tech Used (0) 0 Bonus (0) 0 TOTAL SCORE: 1324 Bonus ------- None Cogmind --------- Core Integrity 156/400 Matter 300/300 Energy 100/100 System Corruption 0% Temperature Cool (0) Movement Treading (160) Location -9/Materials Parts ------- > --- POWER (1) -------- (None) > --- PROPULSION (2) --- Light Treads Light Treads > --- UTILITY (4) ------ Small Storage Unit > --- WEAPON (2) ------- (None) > --- INVENTORY (6) ---- Ion Engine Aluminum Leg Wheel Grenade Launcher Peak State ------------ > --- POWER ------------ Light Ion Engine > --- PROPULSION ------- Aluminum Leg Aluminum Leg > --- UTILITY ---------- Small Storage Unit > --- WEAPON ----------- EM Pulse Gun Heavy EM Pulse Gun > --- INVENTORY -------- Ion Engine Light Treads Light Treads Wheel Assault Rifle Grenade Launcher [Rating: 7] Favorites ----------- Power Light Ion Engine Engine Light Ion Engine Propulsion Aluminum Leg Treads Light Treads Leg Aluminum Leg Utility Small Storage Unit Storage Small Storage Unit Weapon EM Pulse Gun Energy Gun EM Pulse Gun Ballistic Gun Assault Rifle Build | -11 -10 -9 ------- Run | Scr Mat Mat Slots Evolved 2 | . . 2 Power . | . . . Propulsion . | . . . Utility 2 | . . 2 Weapon . | . . . Parts Attached 6 | . 2 4 Power 1 | . 1 . Engine 1 | . 1 . Core . | . . . Reactor . | . . . Propulsion 3 | . 1 2 Treads 2 | . . 2 Leg 1 | . 1 . Wheel . | . . . Hover . | . . . Flight . | . . . Utility . | . . . Device . | . . . Storage . | . . . Processor . | . . . Hackware . | . . . Protection . | . . . Artifact . | . . . Weapon 2 | . . 2 Energy Gun 1 | . . 1 Energy Cannon . | . . . Ballistic Gun 1 | . . 1 Ballistic Cannon . | . . . Launcher . | . . . Special Weapon . | . . . Impact Weapon . | . . . Slashing Weapon . | . . . Piercing Weapon . | . . . Special Melee Weapon . | . . . Unidentified Prototypes . | . . . Parts Lost 5 | . . 5 Power 1 | . . 1 Propulsion 1 | . . 1 Utility . | . . . Weapon 3 | . . 3 Highest Loss Streak 4 | . . 4 Average Slot Usage (%) 71 | . 85 54 Engine 11 | . 14 7 Treads 2 | . . 5 Leg 22 | . 28 15 Storage 12 | . 14 11 Energy Gun 21 | . 28 12 Naked Turns . | . . . Heaviest Build 12 | 11 11 12 Greatest Support 40 | 20 20 40 Greatest Overweight (x) . | . . . Average Overweight (x) . | . . . Largest Inventory Capacity 6 | . 6 6 Average Capacity 6 | . 6 6 Most Carried 6 | . 6 6 Average Carried 5 | . 6 5 Final Capacity 6 | 6 6 6 Final Carried 6 | 6 6 4 Class Distribution -------------------- 100% | Mutant Dominant Class ---------------- Mutant | -10/Materials Mutant | -9/Materials Resources | -11 -10 -9 ----------- Run | Scr Mat Mat Matter Collected 259 | 200 19 40 Remotely . | . . . Salvage Created 466 | . 143 323 Parts 25 | . 5 20 Haulers Intercepted 1 | . 1 . Recyclers Shooed . | . . . Parts Field Recycled . | . . . Retrieved Matter . | . . . Parts Self-Destructed . | . . . Prevented . | . . . Kills | -11 -10 -9 ------- Run | Scr Mat Mat Combat Hostiles Destroyed 8 | . 1 7 Guns 7 | . . 7 Classes Destroyed 4 | . 4 . Hauler 1 | . 1 . Operator 1 | . 1 . Watcher 1 | . 1 . Grunt 8 | . 1 7 Best Kill Streak 5 | . 2 5 Combat Bots Only 5 | . 1 5 Max Kills in Single Turn 1 | . 1 1 Gunslinging . | . . . Exploded . | . . . Melee . | . . . Uniques/NPCs Destroyed . | . . . Combat | -11 -10 -9 -------- Run | Scr Mat Mat Damage Taken 1024 | . 105 919 Core 264 | . 20 244 Absorbed by Shields . | . . . Core Remaining (%) 96 | 100 92 . Volleys Fired 33 | . 13 20 Largest 2 | . 2 2 Hottest 85 | . 80 85 Shots Fired 63 | . 26 37 Gun 63 | . 26 37 Cannon . | . . . Launcher . | . . . Special . | . . . Kinetic 9 | . . 9 Thermal . | . . . Explosive . | . . . Electromagnetic 54 | . 26 28 Robot Hit Streak 7 | . 7 7 Robot Miss Streak 2 | . 2 2 Penetration Max . | . . . Secondary Targets 1 | . . 1 Max Gunslinging Chain 1 | . . 1 Shots Hit Robots 47 | . 18 29 Core Hits 22 | . 5 17 Critical Hits . | . . . Critical Kills . | . . . Critical Parts Destroyed . | . . . Melee Attacks . | . . . Impact . | . . . Slashing . | . . . Piercing . | . . . Sneak Attacks . | . . . Combat Hostiles . | . . . Follow-up Attacks . | . . . Damage Inflicted 740 | . 274 466 Guns 621 | . 236 385 Cannons . | . . . Explosions 111 | . 38 73 Melee . | . . . Ramming 8 | . . 8 Kinetic 95 | . . 95 Thermal 111 | . 38 73 Explosive . | . . . Electromagnetic 526 | . 236 290 Impact . | . . . Slashing . | . . . Piercing . | . . . Highest Corruption . | . . . Average Corruption . | . . . Corruption Purged . | . . . Overload Shots . | . . . Overflow Damage 48 | . . 48 Projectiles . | . . . Explosions 48 | . . 48 Melee . | . . . Knockbacks . | . . . Impact . | . . . Kinetic . | . . . Secondary . | . . . Self-Inflicted Damage 33 | . 33 . Shots 1 | . 1 . Rammed 21 | . . 21 Targets Rammed 21 | . . 21 Kicked . | . . . Crushed . | . . . Highest Temperature 204 | . 204 96 Average Temperature 64 | . 84 47 Received Heat Transfer 435 | . 42 393 Siege Activations . | . . . Robots Corrupted 1 | . 1 . Combat Hostiles 1 | . 1 . Parts Fried 4 | . 3 1 Impact Corruptions . | . . . Robots Melted . | . . . Combat Hostiles . | . . . Parts Melted 1 | . 1 . Heat Transferred 100 | . 50 50 Parts Sabotaged . | . . . Parts Stolen . | . . . Parts Stripped . | . . . Power Chain Reactions 1 | . 1 . Missiles Intercepted . | . . . Alert | -11 -10 -9 ------- Run | Scr Mat Mat Peak Influence 192 | . 54 192 Initial 22 | . . 22 Average 68 | . 23 123 Maximum Alert Level . | . . . Low Security (%) 100 | . 100 100 Level 1 . | . . . Level 2 . | . . . Level 3 . | . . . Level 4 . | . . . Level 5 . | . . . High Security . | . . . Max Security . | . . . Squads Dispatched 3 | . 1 2 Investigation 1 | . . 1 Extermination . | . . . Reinforcement 2 | . 1 1 Assault . | . . . Garrison . | . . . Intercept . | . . . Construction Impeded . | . . . Haulers Reinforced . | . . . Stealth | -11 -10 -9 --------- Run | Scr Mat Mat Distress Signals . | . . . Communications Jammed . | . . . Distress Signals . | . . . Times Spotted 15 | . 3 12 Peak Tracking Total 5 | . 2 5 Tactical Retreats . | . . . Traps | -11 -10 -9 ------- Run | Scr Mat Mat Traps Triggered 1 | . 1 . Indirectly . | . . . Trap Hack Attempts . | . . . Triggered . | . . . Disarmed . | . . . Reprogrammed . | . . . Reused . | . . . Traps Extracted . | . . . Installed . | . . . Triggered . | . . . Machines | -11 -10 -9 ---------- Run | Scr Mat Mat Machines Disabled 1 | . . 1 Max in Single Turn 1 | . . 1 Machines Sabotaged . | . . . Garrisons Compromised . | . . . Overloaded Fab Kills . | . . . Fab Network Shutdowns . | . . . Hacking | -11 -10 -9 --------- Run | Scr Mat Mat Machines Accessed 2 | . 1 1 Terminals 1 | . 1 . Fabricators . | . . . Repair Stations . | . . . Recycling Units 1 | . . 1 Scanalyzers . | . . . Garrison Access . | . . . Total Hacks 2 | . 1 1 Successful 2 | . 1 1 Failed . | . . . Catastrophic . | . . . Database Lockouts . | . . . Manual 1 | . . 1 Terminals 1 | . 1 . Fabricators . | . . . Repair Stations . | . . . Recycling Units 1 | . . 1 Scanalyzers . | . . . Garrison Access . | . . . Terminal Hacks 1 | . 1 . Prototype ID Bank 1 | . 1 . Fabricator Hacks . | . . . Repair Station Hacks . | . . . Recycling Unit Hacks . | . . . Scanalyzer . | . . . Garrison Access Hacks . | . . . Unauthorized Hacks 1 | . . 1 Terminals . | . . . Fabricators . | . . . Repair Stations . | . . . Recycling Units 1 | . . 1 Tunnel 1 | . . 1 Scanalyzers . | . . . Garrison Access . | . . . Data Cores Recovered . | . . . Used . | . . . Hacking Detections . | . . . Full Trace Events . | . . . Feedback Events . | . . . Feedback Blocked . | . . . Robot Schematics Acquired . | . . . Robots Built . | . . . Matter . | . . . Time . | . . . Total Robot Build Rating . | . . . Part Schematics Acquired . | . . . Parts Built . | . . . Matter . | . . . Time . | . . . Total Part Build Rating . | . . . Parts Repaired . | . . . Time . | . . . Parts Recycled . | . . . Recycled Matter . | . . . Retrieved Matter . | . . . Retrieved Components . | . . . Parts Scanalyzed . | . . . Part Schematics Acquired . | . . . Parts Damaged . | . . . Bothacking | -11 -10 -9 ------------ Run | Scr Mat Mat Used RIF Installer . | . . . Robots Hacked . | . . . Non-combat . | . . . Combat . | . . . Robot Hacks Applied . | . . . Relay Couplers Released . | . . . Robots Rewired . | . . . Allies Hacked . | . . . Hacks Repelled . | . . . Allies | -11 -10 -9 -------- Run | Scr Mat Mat Total Allies . | . . . Largest Group . | . . . Highest-Rated Group . | . . . Highest-Rated Ally . | . . . Total Orders . | . . . Ally Attacks . | . . . Total Damage . | . . . Kills . | . . . Allies Corrupted . | . . . Allies Melted . | . . . Intel | -11 -10 -9 ------- Run | Scr Mat Mat Robot Analysis Total . | . . . Derelict Logs Recovered . | . . . Drone Launches . | . . . Drone Recoveries . | . . . Exploration | -11 -10 -9 ------------- Run | Scr Mat Mat Turns Passed 407 | . 226 181 Spaces Moved 211 | 1 153 57 Core . | . . . Treads 9 | . . 9 Legs 202 | 1 153 48 Wheels . | . . . Hover . | . . . Flight . | . . . Fastest Speed 120 | 120 120 120 Average Speed 121 | 120 120 126 Slowest Speed 160 | 120 120 160 Overloaded Moves . | . . . Propulsion Burnouts . | . . . Robots Hopped . | . . . Cave-ins Triggered . | . . . Exploration Rate (%) 15 | 2 31 12 Regions Visited 2 Branch Regions . Pre-discovered Areas 1 | . . 1 Known Exits Taken . | . . . Unknown Exits Taken 2 | 1 1 . Scrap Searched . | . . . Spaces Dug . | . . . Terrain Destroyed 25 | . 5 20 Melee . | . . . Projectile . | . . . AOE 25 | . 5 20 Terrain Rammed . | . . . Walls Destroyed . | . . . Machines Disabled . | . . . Actions | -11 -10 -9 --------- Run | Scr Mat Mat Total 285 | . 169 116 Wait 13 | . . 13 Move 209 | . 152 57 Hop . | . . . Pick Up 1 | . 1 . Fast Attach 2 | . 2 . Attach 2 | . . 2 Detach . | . . . Swap 2 | . . 2 Drop 2 | . 1 1 Fire 33 | . 13 20 Melee . | . . . Ram . | . . . Kick . | . . . Crush 21 | . . 21 Escape Stasis . | . . . Rewire . | . . . Trap . | . . . Miscellaneous . | . . . Route ------- -11/Scrapyard -10/Materials -9/Materials (discovered 1 exit: [*Min]) History --------- Turn | Location | Event 1 | -11/Scrapyard | Discovered new exit (range 0) 1 | -11/Scrapyard | Entered Materials 209 | -10/Materials | Discovered new exit (range 15) 227 | -10/Materials | Entered another Materials area 227 | -9/Materials | Evolved 2 slots: Utility x2 316 | -9/Materials | Build established: Mutant 386 | -9/Materials | Discovered new exit (range 16) 389 | -9/Materials | Lost 4 parts (1p1n2w) 392 | -9/Materials | Core integrity fell below 50% 408 | -9/Materials | Self-destructed Last Messages --------------- 00348_ U-05 Engineer builds a Door. 00350_ Particle Gun fried. 00350_ G-47 Trooper destroyed. 00350_ Switching to secondary target: Y-45 Defender. 00352_ U-05 Engineer lays Concrete. 00355_ Hvy. EM Pulse Gun destroyed. 00356_ G-34 Mercenary destroyed. 00356_ U-05 Engineer lays Concrete. 00357_ U-05 Engineer builds a Wall. 00358_ Assault Rifle destroyed. 00359_ Acquired 27 matter. 00360_ Slammed into A-02 Transporter. 00362_ U-05 Engineer lays Concrete. 00363_ Slammed into Y-45 Defender. 00364_ U-05 Engineer lays Concrete. 00365_ Slammed into Y-45 Defender. 00369_ Acquired 2 matter. 00370_ Slammed into Y-45 Defender. 00386_ EXIT=FOUND 00387_ Slammed into Y-45 Defender. Map ----- +----------------------------------------------------+ | ?????????????????# ##"""""####?????? | | ?????????????##### " #?????? | | ???????????? " #?????? | | ???????????? " [ #?????? | | ?????????????" !! " #?????? | | ?????????????" !! " #?????? | | ????????????"" # = #?????? | | ???????????? # [ = #?????? | | ???????????? # % = #?????? | | ????????????"" """ ####+#"""##?????? | | ????????? """ """ %[ ###??????? | | ????????? """ """ #????????? | | ???????? #????????? | | ???????? ##????????? | | ?????# """ """ #?????????? | | ?????# """ """ #?????????? | | ???### = """ """ ##????????? | | ???# #????????? | | ?? + %% +????????? | | ???# *%== #????????? | | ???# #######=!%########????????? | | ?????????????????#=!*## #?????????? | | ?????????????????# %%## T #?????????? | | ?????????????????# %%## #?????????? | | ?????????????????#%% ## #?????????? | | ?????????????????# % ## @ #?????????? | | ????????????????## %## %Y#?????????? | | ????????????????# %###+####???????? | | ????????????????# % %% #???????? | | ????????????????+ %% #???????? | | ????????????????# #???????? | | ????????????????# #### #???????? | | ????????????????### ###??? #???????? | | ??????????????????# #????? #???????? | | ??????????????????# #????? +???????? | | ??????????????????# #????? #???????? | | ??????????????????# #????? +???????? | | ?????????????????? ?????? #???????? | | ?????????????????? ??????#+##???????? | | ??????????????????